bitfinex-derivatives/quotes_BNBF0:USTF0_20250329
["timestamp","ask_amount","ask_price","bid_price","bid_amount"]
[1743281358199,1.311,601.2,600.51,0.28956927]
[1743281360099,2.906,601.2,600.51,0.28956927]
[1743281360296,2.906,601.2,600.52,0.33304469]
[1743281362102,2.906,601.2,600.69,1.24038505]
[1743281364703,2.906,601.2,600.75,1.24038505]
[1743281366606,2.906,601.2,600.76,1.24038505]
[1743281369606,2.906,601.2,600.72,1.24038505]
[1743281371711,2.906,601.2,600.64,0.28950182]
[1743281372909,2.906,601.2,600.58,1.24038505]
[1743281373102,2.906,601.2,600.64,0.2895259]
[1743281375909,2.906,601.2,600.58,0.33301142]
[1743281376107,2.906,601.2,600.64,0.28954035]
[1743281377806,1.39219595,601.19,600.58,0.33301142]
[1743281378006,2.906,601.2,600.58,0.33301142]
[1743281378228,1.39240653,601.19,600.58,0.33301142]
[1743281378404,1.39240653,601.18,600.58,0.33301142]
[1743281378610,1.39240653,601.17,600.58,0.33301142]
[1743281378811,1.39240653,601.16,600.58,0.33301142]
[1743281379110,1.39240653,601.15,600.51,1.24038505]
[1743281379315,1.39240653,601.14,600.51,1.24038505]
[1743281379613,1.39240653,601.13,600.51,1.24038505]
[1743281379809,1.39240653,601.12,600.45,0.28961626]
[1743281380010,1.39161172,601.11,600.45,0.28961626]
[1743281380207,1.39161172,601.1,600.45,0.28961626]
[1743281380408,1.39161172,601.09,600.45,0.28961626]
[1743281380608,1.39161172,601.08,600.45,0.28961626]
[1743281380808,1.39161172,601.07,600.4,1.24038505]
[1743281381013,1.39161172,601.06,600.4,1.24038505]
[1743281381212,1.39161172,601.05,600.4,1.24038505]
[1743281381409,1.39161172,601.04,600.4,1.24038505]
[1743281381613,1.39161172,601.03,600.4,1.24038505]
[1743281381811,1.39161172,601.02,600.25,1.24038505]
[1743281382014,1.39047994,601.01,600.25,1.24038505]
[1743281382209,1.11796777,601.03,600.25,1.24038505]
[1743281382210,1.38985379,601.0,600.32,0.28967894]
[1743281382409,1.38984425,600.99,600.32,0.28967894]
[1743281382716,1.11796777,600.99,600.32,0.28967894]
[1743281383616,1.11796777,600.98,600.32,0.28967894]
[1743281384019,1.346,601.0,600.32,0.28967894]
[1743281384919,1.346,601.0,599.8,2.49858481]
[1743281384920,1.346,601.0,600.09,1.24038505]
[1743281385217,1.346,601.0,600.1,0.33327778]
[1743281385412,1.346,601.0,600.32,0.28969823]
[1743281385618,1.346,601.0,600.1,0.33327778]
[1743281386020,1.346,601.0,600.32,0.28971632]
[1743281386217,1.346,601.0,600.1,0.33327778]
[1743281386618,1.346,601.0,600.32,0.28970185]
[1743281386915,1.346,601.0,600.1,0.33327778]
[1743281387118,1.346,601.0,600.32,0.28969703]
[1743281387419,1.346,601.0,600.1,0.33327778]
[1743281387718,1.346,601.0,600.32,0.28969703]
[1743281388018,1.346,601.0,600.1,0.33327778]
[1743281389219,1.346,601.0,600.11,0.28971873]
[1743281389417,1.346,601.0,600.12,0.33326667]
[1743281399128,1.346,601.0,600.22,1.24038505]
[1743281399724,1.346,601.0,600.23,0.3332056]
[1743281400826,1.346,601.0,600.27,1.24038505]
[1743281401124,1.346,601.0,600.28,0.33317785]
[1743281401522,1.38864035,601.3,600.28,0.33317785]
[1743281401724,4.28797953,601.29,600.28,0.33317785]
[1743281402024,1.38864035,601.28,600.28,0.33317785]
[1743281402225,2.89933918,601.29,600.28,0.33317785]
[1743281402423,2.02210679,601.27,600.28,0.33317785]
[1743281402923,0.907,601.27,600.28,0.33317785]
[1743281404120,0.878,601.26,600.28,0.33317785]
[1743281404324,1.798,601.26,600.37,1.24038505]
[1743281404626,1.798,601.26,600.38,0.33312235]
[1743281405626,1.798,601.26,600.47,1.24038505]
[1743281407728,1.798,601.26,600.54,1.24038505]
[1743281410132,1.798,601.26,600.57,1.24038505]
[1743281412937,1.798,601.26,600.56,1.24038505]
[1743281415132,0.92,601.26,600.56,1.24038505]
[1743281415332,0.92,601.26,600.51,0.28954276]
[1743281417331,0.92,601.26,600.51,1.52992781]
[1743281417832,0.92,601.26,600.51,1.24038505]
[1743281418138,1.062,601.25,600.51,1.24038505]
[1743281418333,1.062,601.25,600.51,1.52993384]
[1743281419441,1.062,601.25,600.51,0.28954879]
[1743281420941,1.062,601.25,600.4,1.24038505]
[1743281421236,1.062,601.25,600.51,0.28956324]
[1743281421434,1.554,601.24,600.41,0.33310571]
[1743281421834,1.554,601.24,600.51,0.28956204]
[1743281422041,1.554,601.24,600.41,0.33310571]
[1743281422434,1.554,601.24,600.51,0.28956324]
[1743281422641,1.554,601.24,600.41,0.33310571]
[1743281423142,1.554,601.24,600.51,0.28956324]
[1743281423338,1.554,601.24,600.43,1.24038505]
[1743281423532,1.554,601.24,600.51,0.28954638]
[1743281423933,1.554,601.24,600.43,1.24038505]
[1743281424137,0.877,601.23,600.43,1.24038505]
[1743281424338,0.877,601.23,600.51,0.28954397]
[1743281424641,0.877,601.23,600.12,2.53022023]
[1743281424642,0.877,601.23,600.52,0.33304469]
[1743281429942,0.877,601.23,600.61,1.24038505]
[1743281432443,0.877,601.23,600.67,1.24038505]
[1743281433749,0.877,601.23,600.6,1.24038505]
[1743281435339,0.877,601.23,600.53,1.24038505]
[1743281438045,0.877,601.23,600.52,0.62259468]
[1743281439040,0.877,601.23,600.52,0.33304469]
[1743281439445,0.877,601.23,600.52,0.62259589]
[1743281439842,0.877,601.23,600.53,1.24038505]
[1743281440045,1.252,601.22,600.53,1.24038505]
[1743281441849,1.252,601.22,600.63,1.24038505]
[1743281443244,1.11801463,601.21,600.63,1.24038505]
[1743281443651,1.11801463,601.2,600.63,1.24038505]
[1743281444245,1.11801463,601.19,600.56,0.28953915]
[1743281444844,2.45501463,601.19,600.52,0.33304469]
[1743281445250,1.11801463,601.18,600.52,0.33304469]
[1743281445449,1.11801463,601.18,600.53,0.28959818]
[1743281445650,1.11801463,601.17,600.53,0.28959818]
[1743281446346,1.11801463,601.16,600.53,0.28959818]
[1743281446545,1.337,601.19,600.53,0.28959818]
[1743281447556,1.11935443,601.18,600.53,0.28959818]
[1743281448452,1.11935443,601.17,600.53,0.28959818]
[1743281449059,1.11935443,601.16,600.53,0.28959818]
[1743281449658,1.11935443,601.15,600.53,0.28959818]
[1743281450466,1.337,601.19,600.53,0.28959818]
[1743281450860,1.12009456,601.18,600.52,0.33304469]
[1743281451265,1.12009456,601.18,600.53,0.28959216]
[1743281451664,1.12009456,601.17,600.53,0.28959216]
[1743281451865,2.28509456,601.17,600.53,0.28959216]
[1743281452666,1.12009456,601.16,600.53,0.28959216]
[1743281453166,1.12009456,601.15,600.53,0.28959216]
[1743281453666,1.12009456,601.14,600.53,0.28959216]
[1743281453862,1.12009456,601.14,600.52,0.33304469]
[1743281454062,1.12009456,601.13,600.52,0.33304469]
[1743281454265,1.12009456,601.13,600.53,0.28959818]
[1743281455164,1.12009456,601.12,600.53,0.28959818]
[1743281455668,1.165,601.17,600.53,0.28959818]
[1743281455871,1.39603138,601.16,600.53,0.28959818]
[1743281456068,1.165,601.17,600.53,0.28959818]
[1743281456263,1.3960888,601.16,600.53,0.28959818]
[1743281456463,1.12096142,601.15,600.53,0.28959818]
[1743281456867,1.12096142,601.15,600.52,0.33304469]
[1743281457270,1.12096142,601.14,600.52,0.33304469]
[1743281457770,2.51682958,601.13,600.52,0.33304469]
[1743281457970,1.12096142,601.13,600.52,0.33304469]
[1743281458270,1.12096142,601.12,600.52,0.33304469]
[1743281458671,1.12096142,601.11,600.52,0.33304469]
[1743281459570,1.12096142,601.1,600.52,0.33304469]
[1743281460374,1.12096142,601.09,600.52,0.33304469]
[1743281460774,1.12096142,601.08,600.52,0.33304469]
[1743281461578,1.165,601.17,600.52,0.33304469]
[1743281461772,1.39516726,601.16,600.52,0.33304469]
[1743281462078,1.39516726,601.15,600.52,0.33304469]
[1743281462278,1.39516726,601.14,600.52,0.33304469]
[1743281462477,1.39516726,601.13,600.52,0.33304469]
[1743281462672,1.12030201,601.14,600.52,0.33304469]
[1743281462870,1.3950037,601.13,600.43,0.28963193]
[1743281463074,1.3950037,601.12,600.43,0.28963193]
[1743281463271,1.12030201,601.14,600.43,0.28963193]
[1743281463471,1.12030201,601.12,600.43,0.28963193]
[1743281463671,1.39470635,601.11,600.43,0.28963193]
[1743281463869,1.12030201,601.12,600.43,0.28963193]
[1743281464073,1.39461054,601.11,600.31,1.24038505]
[1743281464276,1.39461054,601.1,600.31,1.24038505]
[1743281464479,1.39461054,601.09,600.34,0.28966688]
[1743281464678,1.39461054,601.08,600.34,0.28966688]
[1743281464977,1.39461054,601.07,600.36,1.24038505]
[1743281465173,1.39461054,601.06,600.36,1.24038505]
[1743281465374,1.39359655,601.05,600.36,1.24038505]
[1743281465578,1.39389976,601.04,600.36,1.24038505]
[1743281465773,4.30531779,601.03,600.36,1.24038505]
[1743281465979,1.39389976,601.02,600.36,1.24038505]
[1743281466180,2.51420177,601.01,600.36,1.24038505]
[1743281466377,1.39419786,601.0,600.36,1.24038505]
[1743281466574,1.12030201,601.01,600.36,1.24038505]
[1743281466778,1.3942178,601.0,600.34,0.2896705]
[1743281466978,1.12030201,601.0,600.34,0.2896705]
[1743281467580,1.12030201,600.99,600.34,0.2896705]
[1743281468178,1.12030201,600.98,600.34,0.2896705]
[1743281468980,1.12030201,600.98,600.22,1.24038505]
[1743281469182,2.22940562,601.1,600.22,1.24038505]
[1743281469381,3.62244091,601.09,600.34,0.28969461]
[1743281469582,1.39303529,601.08,600.34,0.28969461]
[1743281469782,1.165,601.17,600.22,1.24038505]
[1743281469783,1.39303529,601.07,600.22,1.24038505]
[1743281469983,1.165,601.17,600.22,1.24038505]
[1743281469984,1.39303529,601.06,600.22,1.24038505]
[1743281470184,0.90910439,601.16,600.22,1.24038505]
[1743281470385,2.90843181,601.06,600.2,1.24038505]
[1743281471088,2.51146905,601.05,600.21,0.28968738]
[1743281471284,1.11862762,601.05,600.21,0.28968738]
[1743281471480,1.11862762,601.05,600.22,0.33321115]
[1743281471684,1.165,601.17,600.22,0.33321115]
[1743281471883,1.3930228,601.16,600.22,0.33321115]
[1743281472086,1.3930228,601.15,600.22,0.33321115]
[1743281472286,1.3930228,601.14,600.22,0.33321115]
[1743281472484,1.063,601.14,600.29,1.24038505]
[1743281472681,1.118653,601.13,600.3,0.33316674]
[1743281473385,1.063,601.14,600.3,0.33316674]
[1743281473581,1.075,601.12,600.3,0.33316674]
[1743281475088,1.075,601.12,600.43,1.24038505]
[1743281477386,1.075,601.12,600.44,0.33308906]
[1743281477583,1.075,601.12,600.54,1.24038505]
[1743281479794,1.075,601.12,600.63,1.24038505]
[1743281481991,1.075,601.12,600.6,1.24038505]
[1743281484395,1.075,601.12,600.64,1.24038505]
[1743281486004,1.075,601.12,600.63,1.24038505]
[1743281487098,1.075,601.12,600.52,1.24038505]
[1743281487297,1.075,601.12,600.56,0.2895512]
[1743281488795,1.075,601.12,600.56,1.52993625]
[1743281489797,1.165,601.17,600.56,1.52993625]
[1743281489996,1.165,601.17,600.56,1.24038505]
[1743281490697,1.11961678,601.16,600.56,1.24038505]
[1743281491200,1.11961678,601.15,600.49,0.28959457]
[1743281492799,1.165,601.17,600.49,0.28959457]
[1743281492800,1.11961678,601.14,600.49,0.28959457]
[1743281493001,1.11961678,601.14,600.44,0.33308906]
[1743281493399,1.165,601.17,600.49,0.28961264]
[1743281493601,1.389,601.13,600.49,0.28961264]
[1743281495898,1.389,601.13,600.44,0.33308906]
[1743281496302,1.389,601.13,600.49,0.28957529]
[1743281496596,1.389,601.13,600.5,0.33305578]
[1743281498701,1.389,601.13,600.5,1.57344083]
[1743281500206,1.389,601.13,600.52,1.24038505]
[1743281500904,0.881,601.12,600.52,1.24038505]
[1743281502505,0.881,601.12,600.54,1.24038505]
[1743281504903,0.881,601.12,600.5,0.33305578]
[1743281505505,0.881,601.12,600.5,0.62267204]
[1743281508010,0.881,601.12,600.5,0.33305578]
[1743281508510,0.881,601.12,600.5,0.62266119]
[1743281508710,0.881,601.12,600.53,1.24038505]
[1743281510717,0.881,601.12,600.5,0.62266119]
[1743281510915,0.881,601.12,600.5,0.33305578]
[1743281513612,1.292,601.11,600.5,0.33305578]
[1743281514015,1.292,601.11,600.51,1.24038505]
[1743281516712,1.292,601.11,600.5,0.33305578]
[1743281516713,1.292,601.11,600.55,1.24038505]
[1743281517812,1.28300238,601.11,600.55,1.24038505]
[1743281519319,1.28300238,601.11,600.51,0.28957288]
[1743281520018,1.28300238,601.11,600.5,0.33305578]
[1743281520420,1.28300238,601.11,600.51,0.28959939]
[1743281520821,1.3,601.1,600.51,0.28959939]
[1743281521121,2.127,601.1,600.51,0.28959939]
[1743281523022,2.127,601.1,600.5,0.33305578]
[1743281523418,2.127,601.1,600.51,0.28962952]
[1743281527227,2.127,601.1,600.51,1.53001457]
[1743281528822,2.127,601.1,600.55,1.24038505]
[1743281532635,2.127,601.1,600.51,0.28958493]
[1743281535037,2.127,601.1,600.5,0.33305578]
[1743281535432,2.127,601.1,600.51,0.28958613]
[1743281537933,2.127,601.1,600.5,0.33305578]
[1743281538139,1.3,601.1,600.5,0.33305578]
[1743281538437,1.3,601.1,600.51,0.28958613]
[1743281539939,1.3,601.1,600.57,1.24038505]
[1743281541434,1.2,601.09,600.57,1.24038505]
[1743281541835,1.2,601.09,600.6,1.23319126]
[1743281543441,1.2,601.09,600.53,0.28956083]
[1743281544041,1.2,601.09,600.5,0.33305578]
[1743281544542,1.2,601.09,600.51,0.28958734]
[1743281545844,1.331,601.08,600.51,0.28958734]
[1743281546944,1.331,601.08,600.5,0.33305578]
[1743281547444,1.331,601.08,600.51,0.28961867]
[1743281548343,1.12395571,601.07,600.51,0.28961867]
[1743281548945,1.12395571,601.06,600.51,0.28961867]
[1743281549238,1.12395571,601.06,600.5,0.33305578]
[1743281549638,1.331,601.08,600.5,0.33305578]
[1743281550339,1.12388565,601.07,600.5,0.33305578]
[1743281551238,1.331,601.08,600.5,0.33305578]
[1743281557648,2.22,601.08,600.5,0.33305578]
[1743281557849,1.12377164,601.07,600.5,0.33305578]
[1743281558350,2.22,601.08,600.5,0.33305578]
[1743281560049,1.1239225,601.07,600.5,0.33305578]
[1743281560649,2.22,601.08,600.5,0.33305578]
[1743281561946,1.39964695,601.07,600.5,0.33305578]
[1743281562146,1.39964695,601.06,600.5,0.33305578]
[1743281562354,1.39964695,601.05,600.5,0.33305578]
[1743281562553,1.39952583,601.04,600.5,0.33305578]
[1743281562752,1.39952583,601.03,600.5,0.33305578]
[1743281562947,1.39952583,601.02,600.5,0.33305578]
[1743281563147,2.92197574,601.07,600.5,0.33305578]
[1743281563351,1.12383682,601.02,600.5,0.33305578]
[1743281563749,1.12383682,601.01,600.5,0.33305578]
[1743281564453,1.12383682,601.0,600.5,0.33305578]
[1743281565050,1.12383682,600.99,600.5,0.33305578]
[1743281565454,2.22,601.08,600.5,0.33305578]
[1743281565654,1.39909286,601.07,600.5,0.33305578]
[1743281565847,1.39909286,601.06,600.5,0.33305578]
[1743281566051,1.39909286,601.05,600.5,0.33305578]
[1743281566250,1.39909286,601.04,600.5,0.33305578]
[1743281566450,1.12345538,601.04,600.5,0.33305578]
[1743281566855,1.12345538,601.03,600.5,0.33305578]
[1743281567355,1.12345538,601.02,600.5,0.33305578]
[1743281567857,1.12345538,601.01,600.5,0.33305578]
[1743281568257,1.12345538,601.0,600.5,0.33305578]
[1743281569058,1.12345538,600.99,600.5,0.33305578]
[1743281569454,1.12345538,600.98,600.5,0.33305578]
[1743281569956,0.889,601.08,600.5,0.33305578]
[1743281569957,1.12345538,600.97,600.5,0.33305578]
[1743281570656,0.889,601.08,600.5,0.33305578]
[1743281570854,1.39820214,601.07,600.5,0.33305578]
[1743281571053,1.39820214,601.06,600.5,0.33305578]
[1743281571259,1.12275476,601.06,600.5,0.33305578]
[1743281571859,0.889,601.08,600.5,0.33305578]
[1743281571860,1.12275476,601.05,600.5,0.33305578]
[1743281572257,1.183,601.04,600.5,0.33305578]
[1743281572658,1.12275476,601.03,600.5,0.33305578]
[1743281573759,1.183,601.04,600.5,0.33305578]
[1743281577764,0.898,601.03,600.5,0.33305578]
[1743281585064,0.898,601.03,600.5,1.82151784]
[1743281587565,0.898,601.03,600.5,0.33305578]
[1743281593879,1.183,601.04,600.5,0.33305578]
[1743281596080,1.156,601.03,600.5,0.33305578]
[1743281602984,1.156,601.03,600.58,1.23787261]
[1743281603184,1.156,601.03,600.59,0.33300587]
[1743281605385,1.056,601.02,600.59,0.33300587]
[1743281614591,1.056,601.02,600.6,1.23787261]
[1743281615991,1.056,601.02,600.67,1.23787261]
[1743281617591,1.056,601.02,600.66,1.23787261]
[1743281620291,1.216,601.01,600.66,1.23787261]
[1743281620589,1.216,601.01,600.67,0.33296152]
[1743281627901,1.353,601.0,600.67,0.33296152]
[1743281630002,1.353,601.0,600.77,1.23787261]
[1743281632098,1.353,601.0,600.7,0.28948857]
[1743281632099,1.353,601.0,600.97,1.23787261]
[1743281633904,1.353,601.0,600.95,1.23787261]
[1743281635899,1.353,601.0,600.92,1.23787261]
[1743281637605,1.353,601.0,600.9,1.23787261]
[1743281639505,1.353,601.0,600.91,1.23787261]
[1743281641705,1.353,601.0,600.88,1.23787261]
[1743281644111,2.21,601.01,600.75,0.28951386]
[1743281646107,2.21,601.01,600.74,1.23787261]
[1743281646602,2.21,601.01,600.75,0.28952951]
[1743281647009,0.931,601.0,600.75,0.28952951]
[1743281649007,0.931,601.0,600.69,1.23787261]
[1743281649511,0.931,601.0,600.69,1.52742381]
[1743281651005,0.931,601.0,600.69,0.2895512]
[1743281652112,0.931,601.0,600.68,1.23787261]
[1743281652303,0.931,601.0,600.69,0.2895524]
[1743281652904,0.931,601.0,600.74,1.23787261]
[1743281654709,0.931,601.0,600.69,0.2895524]
[1743281655011,0.931,601.0,600.68,1.23787261]
[1743281655311,0.931,601.0,600.69,0.2895524]
[1743281655508,1.085,600.99,600.69,0.2895524]
[1743281656412,1.085,600.99,600.69,1.52742501]
[1743281658013,1.085,600.99,600.69,1.23787261]
[1743281658411,1.085,600.99,600.69,1.52742501]
[1743281658709,1.085,600.99,600.69,0.2895524]
[1743281660214,1.084,600.98,600.69,0.2895524]
[1743281661009,1.084,600.98,600.67,0.33296152]
[1743281661412,1.084,600.98,600.69,0.28955601]
[1743281664214,1.084,600.98,600.7,1.23787261]
[1743281665620,1.206,600.97,600.7,1.23787261]
[1743281666223,1.206,600.97,600.72,1.23787261]
[1743281668522,1.206,600.97,600.7,0.28954638]
[1743281669923,1.206,600.97,600.67,0.33296152]
[1743281670331,1.206,600.97,600.67,1.57083413]
[1743281670532,1.206,600.97,600.68,0.28956445]
[1743281673034,1.206,600.97,600.67,0.33296152]
[1743281673333,1.206,600.97,600.68,0.28955722]
[1743281673534,1.206,600.97,600.68,1.52742983]
[1743281675733,1.206,600.97,600.71,1.23787261]
[1743281677138,1.206,600.97,600.82,1.23787261]
[1743281678534,1.084,600.98,600.82,1.23787261]
[1743281678739,1.084,600.98,600.68,0.2895524]
[1743281678740,1.084,600.98,600.95,1.23787261]
[1743281679135,1.084,600.98,600.95,0.00087261]
[1743281681242,1.084,600.98,600.68,0.28952229]
[1743281681939,1.084,600.98,600.67,0.33296152]
[1743281682340,1.084,600.98,600.68,0.28955601]
[1743281685049,1.084,600.98,600.67,0.33296152]
[1743281685350,1.084,600.98,600.68,0.28955601]
[1743281687352,1.29,600.97,600.68,0.28955601]
[1743281691255,1.29,600.97,600.67,0.33296152]
[1743281691456,1.29,600.97,600.68,0.28955722]
[1743281694058,1.29,600.97,600.67,0.33296152]
[1743281694356,1.29,600.97,600.68,0.28955722]
[1743281697054,1.29,600.97,600.67,0.33296152]
[1743281697459,1.29,600.97,600.68,0.28955722]
[1743281700061,1.29,600.97,600.67,0.33296152]
[1743281700454,1.29,600.97,600.68,0.28955722]
[1743281701157,1.097,600.96,600.68,0.28955722]
[1743281703161,1.097,600.96,600.67,0.33296152]
[1743281703363,1.097,600.96,600.67,0.62252476]
[1743281705058,1.097,600.96,600.67,0.33296152]
[1743281706164,1.097,600.96,599.9,1.48846206]
[1743281706361,1.097,600.96,600.52,0.28961505]
[1743281706663,1.097,600.96,599.92,0.33337778]
[1743281707064,1.097,600.96,600.52,0.28968979]
[1743281707365,1.097,600.96,599.92,0.33337778]
[1743281707564,1.097,600.96,600.52,0.28968979]
[1743281708063,1.097,600.96,600.5,1.48846206]
[1743281708257,1.097,600.96,600.52,0.28961987]
[1743281708461,1.04,600.95,600.52,0.28961987]
[1743281708963,1.04,600.95,600.5,1.48846206]
[1743281709363,1.04,600.95,600.52,0.28960662]
[1743281712165,1.04,600.95,600.23,1.48846206]
[1743281712367,1.04,600.95,600.52,0.28963916]
[1743281712765,2.361,600.95,600.24,0.33320005]
[1743281713065,2.361,600.95,600.52,0.28963795]
[1743281713262,2.361,600.95,600.29,1.48846206]
[1743281713463,2.361,600.95,600.3,0.33316674]
[1743281713667,2.361,600.95,600.52,0.28963193]
[1743281713868,2.361,600.95,600.3,0.33316674]
[1743281714265,2.361,600.95,600.52,0.28963072]
[1743281714561,2.361,600.95,600.3,1.8216288]
[1743281714963,2.361,600.95,600.52,0.28963072]
[1743281715162,2.361,600.95,600.3,1.8216288]
[1743281715565,2.361,600.95,600.5,0.28965001]
[1743281715965,2.361,600.95,600.3,1.8216288]
[1743281716162,2.361,600.95,600.47,0.28965724]
[1743281716568,2.361,600.95,600.3,0.33316674]
[1743281716769,2.361,600.95,600.47,0.28965724]
[1743281717168,2.361,600.95,600.3,0.33316674]
[1743281717469,2.361,600.95,600.47,0.28965724]
[1743281717664,2.361,600.95,600.3,0.33316674]
[1743281718065,2.361,600.95,600.45,0.28966206]
[1743281718469,2.361,600.95,600.37,1.48846206]
[1743281718668,2.361,600.95,600.45,0.28966206]
[1743281719068,2.361,600.95,600.37,1.48846206]
[1743281719872,2.361,600.95,600.38,0.28965362]
[1743281721169,2.361,600.95,600.3,0.33316674]
[1743281721666,2.361,600.95,600.38,0.28966206]
[1743281721869,2.361,600.95,600.3,0.33316674]
[1743281723074,2.361,600.95,600.31,0.2897115]
[1743281724069,2.361,600.95,600.3,0.33316674]
[1743281724474,2.361,600.95,600.31,0.28968858]
[1743281730075,2.361,600.95,600.3,0.33316674]
[1743281730675,2.361,600.95,600.31,0.28972959]
[1743281733285,2.361,600.95,600.3,0.33316674]
[1743281733682,2.361,600.95,600.31,0.28967653]
[1743281736084,2.361,600.95,600.3,0.33316674]
[1743281736482,2.361,600.95,600.31,0.28965965]
[1743281739094,2.361,600.95,600.3,0.33316674]
[1743281739288,2.361,600.95,600.31,0.28968135]
[1743281742093,2.361,600.95,600.3,1.57502547]
[1743281742498,2.361,600.95,600.31,0.28968135]
[1743281742696,2.361,600.95,600.33,1.24185873]
[1743281744999,2.361,600.95,600.48,1.24185873]
[1743281746793,2.361,600.95,600.39,1.24185873]
[1743281748300,2.361,600.95,600.41,1.24185873]
[1743281748696,3.324,600.95,600.41,1.24185873]
[1743281760000,3.324,600.95,600.46,1.24185873]
[1743281761104,3.324,600.95,600.41,1.24185873]
[1743281762204,3.324,600.95,600.44,1.24185873]
[1743281763800,3.324,600.95,600.46,1.24185873]
[1743281765213,3.324,600.95,600.45,1.24185873]
[1743281766714,3.324,600.95,600.4,1.24185873]
[1743281766912,3.324,600.95,600.4,1.57496998]
[1743281767915,3.324,600.95,600.4,0.33311125]
[1743281771814,3.324,600.95,600.42,1.24185873]
[1743281773318,3.324,600.95,600.67,1.24185873]
[1743281775223,3.324,600.95,600.53,1.24185873]
[1743281778725,3.324,600.95,600.54,1.24185873]
[1743281780520,3.324,600.95,600.61,1.24185873]
[1743281782123,3.324,600.95,600.64,1.24185873]
[1743281783822,3.324,600.95,600.63,1.24185873]
[1743281785129,3.324,600.95,600.69,1.24185873]
[1743281786825,3.324,600.95,600.74,1.24185873]
[1743281787328,0.963,600.95,600.74,1.24185873]
[1743281789028,0.963,600.95,600.75,1.24185873]
[1743281790227,0.963,600.95,600.75,0.08585873]
[1743281791135,0.963,600.95,600.52,0.28959818]
[1743281791840,0.963,600.95,600.4,0.33311125]
[1743281792140,0.963,600.95,600.43,0.28966206]
[1743281793240,0.963,600.95,600.4,0.33311125]
[1743281793740,0.963,600.95,600.43,0.28965001]
[1743281796143,0.963,600.95,600.4,0.33311125]
[1743281796540,0.963,600.95,600.43,0.28965001]
[1743281799145,0.963,600.95,600.4,0.33311125]
[1743281799544,0.963,600.95,600.43,0.28965001]
[1743281802045,0.963,600.95,600.4,0.33311125]
[1743281802750,0.963,600.95,600.41,0.28969461]
[1743281805054,0.963,600.95,600.4,0.33311125]
[1743281805951,0.963,600.95,600.41,0.28968497]
[1743281808157,0.963,600.95,600.4,0.33311125]
[1743281812459,2.486,600.95,600.4,0.33311125]
[1743281822767,3.629,600.95,600.4,0.33311125]
[1743281850900,3.629,600.95,600.52,1.24284429]
[1743281852495,3.629,600.95,600.55,1.24284429]
[1743281857799,3.629,600.95,600.49,1.53245211]
[1743281857998,3.629,600.95,600.5,0.33305578]
[1743281860607,3.629,600.95,600.76,1.24284429]
[1743281861108,1.79410108,601.7,600.76,1.24284429]
[1743281861305,1.3946696,601.69,600.76,1.24284429]
[1743281861610,1.3946696,601.68,600.76,1.24284429]
[1743281861801,1.11896708,601.68,600.76,1.24284429]
[1743281862310,2.51276331,601.67,600.76,1.24284429]
[1743281862502,1.39379623,601.66,600.76,1.24284429]
[1743281862707,1.11896708,601.67,600.76,1.24284429]
[1743281863007,1.11896708,601.65,600.76,0.33291164]
[1743281863508,2.17096708,601.64,600.76,0.33291164]
[1743281864010,0.955,601.63,600.76,0.33291164]
[1743281864215,1.848,601.63,600.76,0.33291164]
[1743281866612,1.11681904,601.62,600.76,0.33291164]
[1743281867318,1.11681904,601.61,600.76,0.33291164]
[1743281867916,1.848,601.63,600.76,0.33291164]
[1743281868620,1.11613952,601.62,600.76,0.33291164]
[1743281869532,1.11613952,601.61,600.76,0.33291164]
[1743281870030,1.11613952,601.6,600.76,0.33291164]
[1743281870524,1.11613952,601.59,600.76,0.33291164]
[1743281872033,1.848,601.63,600.76,0.33291164]
[1743281872626,1.11517622,601.62,600.76,0.33291164]
[1743281873627,1.11517622,601.61,600.76,0.33291164]
[1743281874532,1.11517622,601.6,600.76,0.33291164]
[1743281875129,1.11517622,601.59,600.76,0.33291164]
[1743281875735,1.11517622,601.58,600.76,0.33291164]
[1743281876330,1.848,601.63,600.76,0.33291164]
[1743281876531,1.38818483,601.62,600.76,0.33291164]